[Event "*** Titled Tuesday Blitz"]
[Site "Chess.com"]
[Date "2020.05.26"]
[Round "10"]
[White "northridgehawk"]
[Black "Stronger1799"]
[Result "1-0"]
[WhiteElo "2218"]
[BlackElo "2346"]
[TimeControl "180+1"]
[EndTime "12:00:07 PDT"]
[Termination "northridgehawk won by resignation"]

1. e4 {[%clk 0:02:39.6]} 1... c5 {[%clk 0:02:59.3]} 2. Nf3 {[%clk 0:02:38.9]}
2... e6 {[%clk 0:02:57.4]} 3. d4 {[%clk 0:02:39.8]} 3... cxd4 {[%clk 0:02:57.3]}
4. Nxd4 {[%clk 0:02:40.6]} 4... Nf6 {[%clk 0:02:58.1]} 5. Nc3 {[%clk 0:02:40.9]}
5... d6 {[%clk 0:02:58.6]} 6. g4 {[%clk 0:02:40]} 6... h6 {[%clk 0:02:57.8]} 7.
h3 {[%clk 0:02:39]} 7... Nc6 {[%clk 0:02:56.7]} 8. Be3 {[%clk 0:02:39.5]} 8...
a6 {[%clk 0:02:56.5]} 9. Bg2 {[%clk 0:02:39.3]} 9... Be7 {[%clk 0:02:56.2]} 10.
Qe2 {[%clk 0:02:39.8]} 10... O-O {[%clk 0:02:55.5]} 11. O-O-O {[%clk 0:02:40.3]}
11... Qc7 {[%clk 0:02:55.2]} 12. f4 {[%clk 0:02:40.8]} 12... Nd7 {[%clk
0:02:43]} 13. h4 {[%clk 0:02:38.1]} 13... Nxd4 {[%clk 0:01:28.6]} 14. Bxd4
{[%clk 0:02:39]} 14... Bf6 {[%clk 0:01:03.8]} 15. Bxf6 {[%clk 0:02:36.5]} 15...
Nxf6 {[%clk 0:01:03.9]} 16. g5 {[%clk 0:02:37.4]} 16... Ne8 {[%clk 0:00:57.5]}
17. gxh6 {[%clk 0:02:36]} 17... gxh6 {[%clk 0:00:52.2]} 18. Rhg1 {[%clk
0:02:30.9]} 18... Qe7 {[%clk 0:00:37.8]} 19. Qh5 {[%clk 0:02:22.7]} 19... Kh7
{[%clk 0:00:36.7]} 20. e5 {[%clk 0:02:20.9]} 20... Ng7 {[%clk 0:00:24.3]} 21.
Be4+ {[%clk 0:02:17.3]} 21... f5 {[%clk 0:00:16.2]} 22. exf6+ {[%clk 0:02:16.6]}
1-0

[Event "*** Titled Tuesday Blitz"]
[Site "Chess.com"]
[Date "2020.05.26"]
[Round "10"]
[White "QueenOfTactics90"]
[Black "WhiteCapital80"]
[Result "0-1"]
[WhiteElo "1981"]
[BlackElo "2419"]
[TimeControl "180+1"]
[EndTime "12:00:16 PDT"]
[Termination "WhiteCapital80 won by resignation"]

1. e4 {[%clk 0:03:00.9]} 1... e6 {[%clk 0:03:00.1]} 2. Qe2 {[%clk 0:03:00.4]}
2... d6 {[%clk 0:02:53.9]} 3. Nf3 {[%clk 0:02:39.3]} 3... e5 {[%clk 0:02:53.9]}
4. g3 {[%clk 0:02:38.9]} 4... Nf6 {[%clk 0:02:52.9]} 5. Bg2 {[%clk 0:02:38.9]}
5... Be7 {[%clk 0:02:46.5]} 6. d4 {[%clk 0:02:38.3]} 6... exd4 {[%clk
0:02:44.1]} 7. Nxd4 {[%clk 0:02:38.4]} 7... O-O {[%clk 0:02:44.2]} 8. O-O {[%clk
0:02:38.6]} 8... Nbd7 {[%clk 0:02:43.8]} 9. h4 {[%clk 0:02:33.7]} 9... Re8
{[%clk 0:02:43.2]} 10. Nc3 {[%clk 0:02:32.1]} 10... c6 {[%clk 0:02:43.1]} 11.
Nf5 {[%clk 0:02:30.1]} 11... Bf8 {[%clk 0:02:43]} 12. Bf4 {[%clk 0:02:27.8]}
12... Nc5 {[%clk 0:02:33]} 13. Rad1 {[%clk 0:02:18.4]} 13... Bxf5 {[%clk
0:02:32.1]} 14. Qc4 {[%clk 0:02:10.4]} 14... Ncxe4 {[%clk 0:02:22.7]} 15. Nxe4
{[%clk 0:02:06.3]} 15... Bxe4 {[%clk 0:02:22.8]} 16. Bxe4 {[%clk 0:02:01.2]}
16... Rxe4 {[%clk 0:02:22.5]} 17. Qd3 {[%clk 0:01:59.7]} 17... d5 {[%clk
0:02:21.7]} 18. f3 {[%clk 0:01:57.6]} 18... Re8 {[%clk 0:02:19.4]} 19. Bg5
{[%clk 0:01:56.9]} 19... Qd6 {[%clk 0:02:17.2]} 20. Bf4 {[%clk 0:01:54.6]} 20...
Qb4 {[%clk 0:02:12.8]} 21. b3 {[%clk 0:01:53.1]} 21... g6 {[%clk 0:02:08.7]} 22.
c3 {[%clk 0:01:53]} 22... Qb6+ {[%clk 0:02:07.1]} 23. Kh2 {[%clk 0:01:51]} 23...
Nh5 {[%clk 0:02:06]} 24. Bg5 {[%clk 0:01:43.6]} 24... Qc7 {[%clk 0:02:00.3]} 25.
Rg1 {[%clk 0:01:41.2]} 25... Re6 {[%clk 0:01:59.6]} 26. Kh3 {[%clk 0:01:37.7]}
26... Rae8 {[%clk 0:01:58.7]} 27. g4 {[%clk 0:01:37.6]} 27... Re2 {[%clk
0:01:48.2]} 28. f4 {[%clk 0:01:03.6]} 28... R8e3+ {[%clk 0:01:41.6]} 0-1

[Event "*** Titled Tuesday Blitz"]
[Site "Chess.com"]
[Date "2020.05.26"]
[Round "10"]
[White "politeplayer"]
[Black "CroissantNeuf"]
[Result "0-1"]
[WhiteElo "2195"]
[BlackElo "2365"]
[TimeControl "180+1"]
[EndTime "12:00:16 PDT"]
[Termination "CroissantNeuf won by resignation"]

1. e4 {[%clk 0:03:00.9]} 1... c6 {[%clk 0:02:59.9]} 2. d4 {[%clk 0:02:59.3]}
2... d5 {[%clk 0:03:00.4]} 3. Nc3 {[%clk 0:02:59.7]} 3... dxe4 {[%clk
0:03:00.4]} 4. Nxe4 {[%clk 0:03:00.2]} 4... Nf6 {[%clk 0:03:01.3]} 5. Nxf6+
{[%clk 0:02:59.3]} 5... exf6 {[%clk 0:03:02.2]} 6. c3 {[%clk 0:02:58.1]} 6...
Bd6 {[%clk 0:03:02.5]} 7. Bd3 {[%clk 0:02:57.3]} 7... O-O {[%clk 0:03:03.4]} 8.
Ne2 {[%clk 0:02:57.2]} 8... Re8 {[%clk 0:03:04.3]} 9. Qc2 {[%clk 0:02:56.4]}
9... h5 {[%clk 0:03:04.8]} 10. Be3 {[%clk 0:02:54.7]} 10... Nd7 {[%clk
0:03:04.4]} 11. O-O-O {[%clk 0:02:54]} 11... Nf8 {[%clk 0:03:05.1]} 12. Ng3
{[%clk 0:02:51.1]} 12... g6 {[%clk 0:03:04.2]} 13. Bh6 {[%clk 0:02:45.5]} 13...
Be6 {[%clk 0:03:00.5]} 14. Bxf8 {[%clk 0:02:41.5]} 14... Kxf8 {[%clk 0:02:56.4]}
15. Bxg6 {[%clk 0:02:37.4]} 15... Qa5 {[%clk 0:02:23.6]} 16. Bxh5 {[%clk
0:00:38.4]} 16... Bf4+ {[%clk 0:02:19.7]} 17. Rd2 {[%clk 0:00:38.7]} 17... Qxa2
{[%clk 0:02:17.7]} 18. Rd1 {[%clk 0:00:24.7]} 18... Bb3 {[%clk 0:02:12.9]} 19.
Qb1 {[%clk 0:00:21.5]} 19... Qxb1+ {[%clk 0:02:02.5]} 20. Kxb1 {[%clk 0:00:21]}
20... Bxd2 {[%clk 0:02:03]} 21. Rxd2 {[%clk 0:00:21.1]} 21... Re1+ {[%clk
0:02:03]} 22. Bd1 {[%clk 0:00:21]} 22... Rxd1+ {[%clk 0:02:02.6]} 23. Rxd1
{[%clk 0:00:21]} 23... Bxd1 {[%clk 0:02:03.5]} 0-1

[Event "*** Titled Tuesday Blitz"]
[Site "Chess.com"]
[Date "2020.05.26"]
[Round "10"]
[White "JozefKneht"]
[Black "MiroVlasenko"]
[Result "1-0"]
[WhiteElo "2488"]
[BlackElo "2643"]
[TimeControl "180+1"]
[EndTime "12:00:30 PDT"]
[Termination "JozefKneht won by resignation"]

1. e4 {[%clk 0:03:00.9]} 1... c5 {[%clk 0:02:58.3]} 2. Nf3 {[%clk 0:03:00.4]}
2... a6 {[%clk 0:02:58.6]} 3. c4 {[%clk 0:02:59]} 3... Nc6 {[%clk 0:02:54.9]} 4.
d4 {[%clk 0:02:57.5]} 4... cxd4 {[%clk 0:02:55.1]} 5. Nxd4 {[%clk 0:02:58]} 5...
e6 {[%clk 0:02:55.6]} 6. Nc3 {[%clk 0:02:51.4]} 6... Nf6 {[%clk 0:02:55.6]} 7.
Nxc6 {[%clk 0:02:46.9]} 7... dxc6 {[%clk 0:02:55]} 8. Qxd8+ {[%clk 0:02:45.9]}
8... Kxd8 {[%clk 0:02:55.5]} 9. e5 {[%clk 0:02:45.6]} 9... Nd7 {[%clk
0:02:54.2]} 10. f4 {[%clk 0:02:43.2]} 10... b5 {[%clk 0:02:48.5]} 11. Ne4 {[%clk
0:02:39.2]} 11... Nc5 {[%clk 0:02:47.4]} 12. Ng5 {[%clk 0:02:34.4]} 12... Ke8
{[%clk 0:02:46.9]} 13. Be2 {[%clk 0:02:26]} 13... h6 {[%clk 0:02:43.6]} 14. Nf3
{[%clk 0:02:25.1]} 14... b4 {[%clk 0:02:38.3]} 15. Be3 {[%clk 0:02:23.6]} 15...
Be7 {[%clk 0:02:31.7]} 16. O-O-O {[%clk 0:02:23.1]} 16... Bb7 {[%clk 0:02:26.3]}
17. Nd4 {[%clk 0:02:05.7]} 17... g5 {[%clk 0:02:08]} 18. Bf3 {[%clk 0:01:59.5]}
18... Rc8 {[%clk 0:02:06.8]} 19. f5 {[%clk 0:01:47.3]} 19... Rg8 {[%clk
0:01:56.5]} 20. h3 {[%clk 0:01:41.4]} 20... Nd7 {[%clk 0:01:42.6]} 21. fxe6
{[%clk 0:01:39.9]} 21... Nxe5 {[%clk 0:01:41.2]} 22. Bh5 {[%clk 0:01:29.8]}
22... c5 {[%clk 0:01:32.2]} 23. exf7+ {[%clk 0:01:27.4]} 23... Nxf7 {[%clk
0:01:31.9]} 24. Nf5 {[%clk 0:01:20.6]} 24... Be4 {[%clk 0:01:25.8]} 25. Nxh6
{[%clk 0:01:07.7]} 25... Bg6 {[%clk 0:01:21.3]} 26. Nxg8 {[%clk 0:01:02.5]}
26... Bxh5 {[%clk 0:01:21.5]} 27. Nxe7 {[%clk 0:01:02.1]} 27... Bxd1 {[%clk
0:01:20.8]} 28. Nxc8 {[%clk 0:01:01.3]} 1-0

[Event "*** Titled Tuesday Blitz"]
[Site "Chess.com"]
[Date "2020.05.26"]
[Round "10"]
[White "DenLaz"]
[Black "Kapibara_Warri0r"]
[Result "1-0"]
[WhiteElo "2629"]
[BlackElo "2137"]
[TimeControl "180+1"]
[EndTime "12:00:35 PDT"]
[Termination "DenLaz won by resignation"]

1. d4 {[%clk 0:03:00]} 1... Nf6 {[%clk 0:02:59.7]} 2. c4 {[%clk 0:03:00.4]} 2...
g6 {[%clk 0:02:59.9]} 3. Nc3 {[%clk 0:03:00.7]} 3... Bg7 {[%clk 0:02:59.9]} 4.
e4 {[%clk 0:03:00.9]} 4... d6 {[%clk 0:03:00.3]} 5. Nf3 {[%clk 0:03:01.3]} 5...
O-O {[%clk 0:03:00.2]} 6. Be2 {[%clk 0:03:01.4]} 6... e5 {[%clk 0:03:00.4]} 7.
dxe5 {[%clk 0:03:02.3]} 7... dxe5 {[%clk 0:03:00.2]} 8. Qxd8 {[%clk 0:03:03.2]}
8... Rxd8 {[%clk 0:03:00.2]} 9. Bg5 {[%clk 0:03:04.1]} 9... Re8 {[%clk
0:02:33.6]} 10. Nd5 {[%clk 0:03:02.4]} 10... Nxd5 {[%clk 0:02:29.9]} 11. cxd5
{[%clk 0:03:03.3]} 11... f6 {[%clk 0:02:22]} 12. Be3 {[%clk 0:03:02]} 12... f5
{[%clk 0:02:20.6]} 13. Rc1 {[%clk 0:02:58.5]} 13... f4 {[%clk 0:02:07.9]} 14.
Bd2 {[%clk 0:02:56.3]} 14... c6 {[%clk 0:02:00.8]} 15. Bc4 {[%clk 0:02:55.2]}
15... Kh8 {[%clk 0:01:58.2]} 16. Ke2 {[%clk 0:02:49.7]} 16... b5 {[%clk
0:01:44.7]} 17. Bb3 {[%clk 0:02:49.1]} 17... Bb7 {[%clk 0:01:39.5]} 18. Ng5
{[%clk 0:02:47.9]} 18... Bf6 {[%clk 0:01:00.7]} 19. Nf7+ {[%clk 0:02:44.1]}
19... Kg7 {[%clk 0:01:00.7]} 20. Nd6 {[%clk 0:02:44.9]} 20... Re7 {[%clk
0:01:01.1]} 21. Nxb7 {[%clk 0:02:45.3]} 21... Rxb7 {[%clk 0:01:01.7]} 22. dxc6
{[%clk 0:02:46.2]} 22... Rc7 {[%clk 0:01:01.9]} 23. Bd5 {[%clk 0:02:46.9]} 23...
a5 {[%clk 0:01:01.1]} 24. Rc5 {[%clk 0:02:46.1]} 24... b4 {[%clk 0:01:00.4]} 25.
Rhc1 {[%clk 0:02:43.8]} 25... Ra6 {[%clk 0:01:00.2]} 26. a3 {[%clk 0:02:42.5]}
26... bxa3 {[%clk 0:00:56.7]} 27. bxa3 {[%clk 0:02:43.4]} 27... a4 {[%clk
0:00:49.1]} 28. Ba5 {[%clk 0:02:40.7]} 28... Rc8 {[%clk 0:00:44.9]} 29. c7
{[%clk 0:02:33.9]} 29... Be7 {[%clk 0:00:42]} 30. cxb8=Q {[%clk 0:02:26.7]}
30... Rxb8 {[%clk 0:00:42.2]} 31. Rc7 {[%clk 0:02:27.3]} 31... Kf6 {[%clk
0:00:36.5]} 32. R1c6+ {[%clk 0:02:25.7]} 32... Rxc6 {[%clk 0:00:36.5]} 33. Rxc6+
{[%clk 0:02:26.6]} 33... Kg7 {[%clk 0:00:35.5]} 34. Bc3 {[%clk 0:02:25.6]} 34...
Bf6 {[%clk 0:00:33.1]} 35. Ra6 {[%clk 0:02:23.1]} 35... Rc8 {[%clk 0:00:32.6]}
36. Kd3 {[%clk 0:02:22.1]} 36... g5 {[%clk 0:00:27.4]} 37. Rxa4 {[%clk
0:02:22.3]} 37... g4 {[%clk 0:00:27.1]} 38. Ra7+ {[%clk 0:02:22.3]} 38... Kg6
{[%clk 0:00:26.8]} 39. Be6 {[%clk 0:02:22]} 39... Kg5 {[%clk 0:00:25.9]} 40.
Bxc8 {[%clk 0:02:20.6]} 1-0

[Event "*** Titled Tuesday Blitz"]
[Site "Chess.com"]
[Date "2020.05.26"]
[Round "10"]
[White "ChessyInstinct"]
[Black "Gurvich_Vitaly"]
[Result "0-1"]
[WhiteElo "2417"]
[BlackElo "2551"]
[TimeControl "180+1"]
[EndTime "12:00:41 PDT"]
[Termination "Gurvich_Vitaly won on time"]

1. d4 {[%clk 0:03:00.9]} 1... d5 {[%clk 0:02:59]} 2. c4 {[%clk 0:03:01.4]} 2...
dxc4 {[%clk 0:02:59.9]} 3. Nf3 {[%clk 0:02:58.7]} 3... Nf6 {[%clk 0:02:59.5]} 4.
e3 {[%clk 0:02:56.9]} 4... e6 {[%clk 0:02:59.8]} 5. Bxc4 {[%clk 0:02:56.4]} 5...
a6 {[%clk 0:03:00.7]} 6. a4 {[%clk 0:02:54]} 6... c5 {[%clk 0:03:00.1]} 7. O-O
{[%clk 0:02:51.5]} 7... Nc6 {[%clk 0:02:59.8]} 8. Nc3 {[%clk 0:02:50.3]} 8...
cxd4 {[%clk 0:02:59.4]} 9. exd4 {[%clk 0:02:51.2]} 9... Nb4 {[%clk 0:02:59.7]}
10. Ne5 {[%clk 0:02:45.8]} 10... Be7 {[%clk 0:02:59.7]} 11. a5 {[%clk
0:02:39.7]} 11... O-O {[%clk 0:02:59.1]} 12. Re1 {[%clk 0:02:22.9]} 12... Nbd5
{[%clk 0:02:57.4]} 13. Qb3 {[%clk 0:02:18.6]} 13... h6 {[%clk 0:02:50]} 14. h3
{[%clk 0:01:51.8]} 14... Ra7 {[%clk 0:02:39.1]} 15. Bd2 {[%clk 0:01:35.1]} 15...
Bd7 {[%clk 0:02:31.6]} 16. Na4 {[%clk 0:01:18.9]} 16... Bxa4 {[%clk 0:02:26.5]}
17. Rxa4 {[%clk 0:01:19.8]} 17... Bd6 {[%clk 0:02:26.7]} 18. Qf3 {[%clk
0:01:06.9]} 18... Ra8 {[%clk 0:02:22.4]} 19. Raa1 {[%clk 0:00:49.8]} 19... Rc8
{[%clk 0:02:18.8]} 20. b3 {[%clk 0:00:49.7]} 20... Bb8 {[%clk 0:02:09.5]} 21.
Re2 {[%clk 0:00:46.9]} 21... Ba7 {[%clk 0:02:09]} 22. Qg3 {[%clk 0:00:27]} 22...
Kh8 {[%clk 0:02:06.7]} 23. Qh4 {[%clk 0:00:19.4]} 23... Ng8 {[%clk 0:02:04.8]}
24. Qe4 {[%clk 0:00:02.6]} 24... Ndf6 {[%clk 0:02:00.4]} 25. Qh4 {[%clk
0:00:01.2]} 25... Qxd4 {[%clk 0:01:59.5]} 0-1

[Event "*** Titled Tuesday Blitz"]
[Site "Chess.com"]
[Date "2020.05.26"]
[Round "10"]
[White "Meri-Arabidze"]
[Black "albano87"]
[Result "1-0"]
[WhiteElo "2589"]
[BlackElo "2402"]
[TimeControl "180+1"]
[EndTime "12:00:43 PDT"]
[Termination "Meri-Arabidze won by resignation"]

1. Nf3 {[%clk 0:02:49.5]} 1... Nf6 {[%clk 0:02:59.7]} 2. d4 {[%clk 0:02:49.7]}
2... d5 {[%clk 0:02:59.3]} 3. c4 {[%clk 0:02:49.9]} 3... c6 {[%clk 0:02:59.3]}
4. Nc3 {[%clk 0:02:49.6]} 4... e6 {[%clk 0:02:59.2]} 5. e3 {[%clk 0:02:49.7]}
5... Nbd7 {[%clk 0:02:58.9]} 6. Qc2 {[%clk 0:02:50.1]} 6... Be7 {[%clk
0:02:57.6]} 7. Be2 {[%clk 0:02:50.6]} 7... dxc4 {[%clk 0:02:57.4]} 8. a4 {[%clk
0:02:50.6]} 8... O-O {[%clk 0:02:54.1]} 9. Bxc4 {[%clk 0:02:50.5]} 9... Qc7
{[%clk 0:02:48.1]} 10. O-O {[%clk 0:02:50.4]} 10... b6 {[%clk 0:02:46.9]} 11. e4
{[%clk 0:02:47.1]} 11... Bb7 {[%clk 0:02:44.9]} 12. e5 {[%clk 0:02:46.9]} 12...
Ne8 {[%clk 0:02:29.4]} 13. Bg5 {[%clk 0:02:44.6]} 13... Bxg5 {[%clk 0:02:25.2]}
14. Nxg5 {[%clk 0:02:43.5]} 14... g6 {[%clk 0:02:24.8]} 15. Qe4 {[%clk
0:02:40.7]} 15... Ng7 {[%clk 0:02:04.4]} 16. Qh4 {[%clk 0:02:39.7]} 16... h5
{[%clk 0:02:00.3]} 17. f4 {[%clk 0:01:50.2]} 17... c5 {[%clk 0:01:54.7]} 18. d5
{[%clk 0:01:49.6]} 18... exd5 {[%clk 0:01:35.4]} 19. Bxd5 {[%clk 0:01:45]} 19...
Bxd5 {[%clk 0:01:32.3]} 20. Nxd5 {[%clk 0:01:44.5]} 20... Qd8 {[%clk 0:01:30.4]}
21. Rad1 {[%clk 0:01:43.6]} 21... Nf5 {[%clk 0:01:25.1]} 22. Qh3 {[%clk
0:01:43.7]} 22... Nd4 {[%clk 0:01:05]} 23. Qxd7 {[%clk 0:01:35.5]} 23... Qxd7
{[%clk 0:00:49.2]} 24. Nf6+ {[%clk 0:01:35.5]} 24... Kg7 {[%clk 0:00:41]} 25.
Nxd7 {[%clk 0:01:36.4]} 25... Rad8 {[%clk 0:00:30.9]} 26. Nxf8 {[%clk
0:01:35.6]} 1-0

[Event "*** Titled Tuesday Blitz"]
[Site "Chess.com"]
[Date "2020.05.26"]
[Round "10"]
[White "bmt011"]
[Black "Ashedu66"]
[Result "0-1"]
[WhiteElo "2072"]
[BlackElo "2169"]
[TimeControl "180+1"]
[EndTime "12:00:43 PDT"]
[Termination "Ashedu66 won by resignation"]

1. d4 {[%clk 0:03:00.9]} 1... d5 {[%clk 0:02:33.1]} 2. Bf4 {[%clk 0:02:57.2]}
2... Nf6 {[%clk 0:02:32.4]} 3. e3 {[%clk 0:02:56.8]} 3... g6 {[%clk 0:02:32.5]}
4. Be2 {[%clk 0:02:55.9]} 4... Bg7 {[%clk 0:02:27.6]} 5. h4 {[%clk 0:02:53.4]}
5... c5 {[%clk 0:02:27.5]} 6. h5 {[%clk 0:02:52.1]} 6... Qb6 {[%clk 0:02:24.4]}
7. Nc3 {[%clk 0:02:51.7]} 7... Bd7 {[%clk 0:02:01.7]} 8. hxg6 {[%clk 0:02:50.2]}
8... hxg6 {[%clk 0:02:01.6]} 9. Rxh8+ {[%clk 0:02:39.6]} 9... Bxh8 {[%clk
0:02:00.9]} 10. Rb1 {[%clk 0:02:33.1]} 10... Nc6 {[%clk 0:01:58.7]} 11. Kf1
{[%clk 0:02:17.9]} 11... cxd4 {[%clk 0:01:52.5]} 12. Nb5 {[%clk 0:02:13.8]}
12... e5 {[%clk 0:01:43.6]} 13. Bg5 {[%clk 0:01:48.3]} 13... Ne4 {[%clk
0:01:36.9]} 14. Bh4 {[%clk 0:01:31.3]} 14... a6 {[%clk 0:01:26.5]} 15. f3 {[%clk
0:01:17.5]} 15... Nf6 {[%clk 0:01:05.2]} 16. exd4 {[%clk 0:01:12]} 16... axb5
{[%clk 0:01:00.3]} 17. dxe5 {[%clk 0:01:12.4]} 17... Nxe5 {[%clk 0:00:50.6]} 18.
Qxd5 {[%clk 0:01:11.5]} 18... Nxd5 {[%clk 0:00:39.3]} 0-1

[Event "*** Titled Tuesday Blitz"]
[Site "Chess.com"]
[Date "2020.05.26"]
[Round "10"]
[White "MariaFominykh"]
[Black "Srisshhhtea"]
[Result "1-0"]
[WhiteElo "2323"]
[BlackElo "2180"]
[TimeControl "180+1"]
[EndTime "12:00:53 PDT"]
[Termination "MariaFominykh won by resignation"]

1. d4 {[%clk 0:03:00.9]} 1... Nf6 {[%clk 0:02:58.4]} 2. c4 {[%clk 0:03:00.6]}
2... c5 {[%clk 0:02:58.4]} 3. d5 {[%clk 0:02:59.6]} 3... b5 {[%clk 0:02:57.7]}
4. cxb5 {[%clk 0:02:59.7]} 4... a6 {[%clk 0:02:57.3]} 5. b6 {[%clk 0:02:59.8]}
5... d6 {[%clk 0:02:51.2]} 6. Nc3 {[%clk 0:02:59.8]} 6... g6 {[%clk 0:02:50.5]}
7. Nf3 {[%clk 0:02:59.9]} 7... Bg7 {[%clk 0:02:50.2]} 8. e4 {[%clk 0:02:59.7]}
8... O-O {[%clk 0:02:50.2]} 9. Be2 {[%clk 0:02:58.4]} 9... Qxb6 {[%clk
0:02:50.6]} 10. Nd2 {[%clk 0:02:57.7]} 10... Qc7 {[%clk 0:02:43.1]} 11. O-O
{[%clk 0:02:54.5]} 11... e6 {[%clk 0:02:42.7]} 12. dxe6 {[%clk 0:02:48.4]} 12...
fxe6 {[%clk 0:02:43.6]} 13. Nc4 {[%clk 0:02:27.9]} 13... Rd8 {[%clk 0:02:42.7]}
14. Bf4 {[%clk 0:02:23.6]} 14... e5 {[%clk 0:02:42.7]} 15. Bg5 {[%clk
0:02:20.3]} 15... Be6 {[%clk 0:02:41.8]} 16. Ne3 {[%clk 0:02:13.5]} 16... Nbd7
{[%clk 0:02:38.1]} 17. Ned5 {[%clk 0:02:00.2]} 17... Bxd5 {[%clk 0:02:36.3]} 18.
Nxd5 {[%clk 0:01:58.8]} 18... Qb7 {[%clk 0:02:34.8]} 19. Bc4 {[%clk 0:01:51.6]}
19... Kh8 {[%clk 0:02:32.9]} 20. Nxf6 {[%clk 0:01:39.4]} 20... Nxf6 {[%clk
0:02:31.8]} 21. Bxf6 {[%clk 0:01:39.1]} 21... Bxf6 {[%clk 0:02:31.6]} 22. Bd5
{[%clk 0:01:38.1]} 22... Qe7 {[%clk 0:02:30.3]} 23. Bxa8 {[%clk 0:01:37]} 23...
Rxa8 {[%clk 0:02:31.2]} 24. b3 {[%clk 0:01:33.8]} 24... Bg5 {[%clk 0:02:27.2]}
25. Qd3 {[%clk 0:01:25.2]} 25... Kg7 {[%clk 0:02:25]} 26. Rad1 {[%clk
0:01:21.7]} 26... Rd8 {[%clk 0:02:23.1]} 27. Qxa6 {[%clk 0:01:20.7]} 27... h5
{[%clk 0:02:21.3]} 28. Rd3 {[%clk 0:01:18.9]} 28... h4 {[%clk 0:02:20.4]} 29.
Rfd1 {[%clk 0:01:18]} 29... Bf4 {[%clk 0:02:18.2]} 30. Rxd6 {[%clk 0:01:12.3]}
30... Rxd6 {[%clk 0:02:10]} 31. Qxd6 {[%clk 0:01:09.5]} 31... Qg5 {[%clk
0:02:09.7]} 32. Qc7+ {[%clk 0:01:02.9]} 32... Kh6 {[%clk 0:02:05]} 33. Rd7
{[%clk 0:00:49.1]} 33... Qf6 {[%clk 0:02:01.7]} 34. Rh7+ {[%clk 0:00:47.7]}
34... Kg5 {[%clk 0:02:00.6]} 35. Qe7 {[%clk 0:00:45.6]} 35... h3 {[%clk
0:01:56.8]} 36. Qxf6+ {[%clk 0:00:44.2]} 36... Kxf6 {[%clk 0:01:57.7]} 37. Rxh3
{[%clk 0:00:42.9]} 37... g5 {[%clk 0:01:46.7]} 38. Rd3 {[%clk 0:00:42.4]} 38...
g4 {[%clk 0:01:46]} 39. Rd5 {[%clk 0:00:42.1]} 1-0

[Event "*** Titled Tuesday Blitz"]
[Site "Chess.com"]
[Date "2020.05.26"]
[Round "10"]
[White "VishnuPrasanna"]
[Black "Lagravesamuell"]
[Result "1-0"]
[WhiteElo "2652"]
[BlackElo "2482"]
[TimeControl "180+1"]
[EndTime "12:00:55 PDT"]
[Termination "VishnuPrasanna won by resignation"]

1. d4 {[%clk 0:03:00.9]} 1... Nf6 {[%clk 0:02:55.3]} 2. c4 {[%clk 0:03:01.1]}
2... e6 {[%clk 0:02:52.4]} 3. Nf3 {[%clk 0:03:01.2]} 3... c5 {[%clk 0:02:44.4]}
4. d5 {[%clk 0:02:59.9]} 4... exd5 {[%clk 0:02:44.9]} 5. cxd5 {[%clk 0:03:00.8]}
5... d6 {[%clk 0:02:44.9]} 6. Nc3 {[%clk 0:03:01.2]} 6... g6 {[%clk 0:02:45]} 7.
Bg5 {[%clk 0:03:01.6]} 7... Bg7 {[%clk 0:02:44.5]} 8. Bh4 {[%clk 0:03:02.2]}
8... O-O {[%clk 0:02:43.1]} 9. e3 {[%clk 0:03:01.9]} 9... h6 {[%clk 0:02:34.1]}
10. Be2 {[%clk 0:03:01.9]} 10... g5 {[%clk 0:02:32.6]} 11. Bg3 {[%clk
0:03:01.3]} 11... Bg4 {[%clk 0:01:50.5]} 12. h4 {[%clk 0:02:44.9]} 12... Nh5
{[%clk 0:01:39.7]} 13. Bh2 {[%clk 0:02:45.1]} 13... f5 {[%clk 0:01:08.8]} 14.
hxg5 {[%clk 0:02:38.9]} 14... hxg5 {[%clk 0:01:08.8]} 15. Nd2 {[%clk 0:02:34.3]}
15... Bxe2 {[%clk 0:01:07.1]} 16. Qxe2 {[%clk 0:02:34.8]} 16... Nf6 {[%clk
0:00:49.1]} 17. Nc4 {[%clk 0:02:32.3]} 17... Ne8 {[%clk 0:00:43.6]} 18. Qh5
{[%clk 0:02:26.8]} 18... Qf6 {[%clk 0:00:43.3]} 19. Bg3 {[%clk 0:02:20.2]} 19...
Na6 {[%clk 0:00:40.1]} 20. f4 {[%clk 0:02:18.5]} 20... gxf4 {[%clk 0:00:32.1]}
21. Bxf4 {[%clk 0:02:19]} 21... Qe7 {[%clk 0:00:16.9]} 22. Qh7+ {[%clk 0:02:18]}
22... Kf7 {[%clk 0:00:17.1]} 23. Qxf5+ {[%clk 0:02:16.9]} 23... Kg8 {[%clk
0:00:17.5]} 24. Qh7+ {[%clk 0:02:16.4]} 24... Kf7 {[%clk 0:00:17.9]} 25. Rh6
{[%clk 0:02:14]} 25... Rh8 {[%clk 0:00:10.8]} 26. Qg6+ {[%clk 0:02:13.2]} 26...
Kg8 {[%clk 0:00:11.2]} 27. Rxh8+ {[%clk 0:02:13.6]} 27... Kxh8 {[%clk
0:00:11.9]} 28. O-O-O {[%clk 0:02:12.5]} 28... Kg8 {[%clk 0:00:08.4]} 29. Rh1
{[%clk 0:02:08.5]} 29... Qf7 {[%clk 0:00:06.4]} 30. Rh8+ {[%clk 0:02:02.2]} 1-0

[Event "*** Titled Tuesday Blitz"]
[Site "Chess.com"]
[Date "2020.05.26"]
[Round "10"]
[White "zajka-molotok"]
[Black "TST2014"]
[Result "0-1"]
[WhiteElo "2381"]
[BlackElo "2528"]
[TimeControl "180+1"]
[EndTime "12:00:59 PDT"]
[Termination "TST2014 won on time"]

1. d4 {[%clk 0:03:00.9]} 1... Nf6 {[%clk 0:02:59.3]} 2. c4 {[%clk 0:03:00.7]}
2... d6 {[%clk 0:02:56.4]} 3. Nc3 {[%clk 0:02:59.6]} 3... e5 {[%clk 0:02:55.9]}
4. Nf3 {[%clk 0:02:37.6]} 4... Nbd7 {[%clk 0:02:53.8]} 5. e4 {[%clk 0:02:36.3]}
5... g6 {[%clk 0:02:53.7]} 6. g3 {[%clk 0:02:35.6]} 6... Bg7 {[%clk 0:02:54]} 7.
Bg2 {[%clk 0:02:35.6]} 7... O-O {[%clk 0:02:54.7]} 8. O-O {[%clk 0:02:35.7]}
8... c6 {[%clk 0:02:50.9]} 9. Re1 {[%clk 0:02:19.3]} 9... a5 {[%clk 0:02:48.3]}
10. h3 {[%clk 0:02:08.6]} 10... Re8 {[%clk 0:02:43.7]} 11. g4 {[%clk 0:02:04.3]}
11... exd4 {[%clk 0:02:42]} 12. Nxd4 {[%clk 0:02:03.9]} 12... Nc5 {[%clk
0:02:40.7]} 13. Bf4 {[%clk 0:01:44.1]} 13... h5 {[%clk 0:02:34.3]} 14. g5 {[%clk
0:01:39.6]} 14... Nfd7 {[%clk 0:02:34.4]} 15. Bxd6 {[%clk 0:01:23.9]} 15... Qxg5
{[%clk 0:02:28]} 16. f4 {[%clk 0:01:15.7]} 16... Qf6 {[%clk 0:02:19.5]} 17. Nf3
{[%clk 0:00:57]} 17... Ne6 {[%clk 0:02:08.2]} 18. f5 {[%clk 0:00:48.6]} 18...
Ng5 {[%clk 0:02:00.9]} 19. Nxg5 {[%clk 0:00:19.7]} 19... Qxg5 {[%clk 0:01:58.5]}
20. fxg6 {[%clk 0:00:17.3]} 20... fxg6 {[%clk 0:01:56.1]} 21. Kh1 {[%clk
0:00:16.5]} 21... Ne5 {[%clk 0:01:51.5]} 22. Rg1 {[%clk 0:00:15.2]} 22... Qh4
{[%clk 0:01:48.6]} 23. Bxe5 {[%clk 0:00:11]} 23... Bxe5 {[%clk 0:01:45.8]} 24.
Qd3 {[%clk 0:00:10.6]} 24... Qf4 {[%clk 0:01:44.3]} 0-1